[Event "*** Titled Tuesday Blitz"]
[Site "Chess.com"]
[Date "2021.03.30"]
[Round "9"]
[White "ajdemipopushi"]
[Black "IljaJoke"]
[Result "1/2-1/2"]
[WhiteElo "2361"]
[BlackElo "2500"]
[TimeControl "180+1"]
[EndTime "11:47:49 PDT"]
[Termination "Game drawn by stalemate"]

1. Nf3 {[%clk 0:02:39.7]} 1... d5 {[%clk 0:02:59.9]} 2. g3 {[%clk 0:02:39.3]}
2... g6 {[%clk 0:03:00.2]} 3. c4 {[%clk 0:02:39.4]} 3... c6 {[%clk 0:02:58.8]}
4. b3 {[%clk 0:02:34.6]} 4... Bg7 {[%clk 0:02:59]} 5. d4 {[%clk 0:02:34.9]} 5...
Nf6 {[%clk 0:02:59.2]} 6. Bb2 {[%clk 0:02:34.7]} 6... O-O {[%clk 0:02:59.3]} 7.
Bg2 {[%clk 0:02:35.3]} 7... Ne4 {[%clk 0:02:57.6]} 8. O-O {[%clk 0:02:34.7]}
8... Bf5 {[%clk 0:02:58.1]} 9. Nbd2 {[%clk 0:02:32]} 9... Nd7 {[%clk 0:02:54.3]}
10. e3 {[%clk 0:02:29]} 10... Bg4 {[%clk 0:02:51]} 11. Qc2 {[%clk 0:02:18.6]}
11... Nxd2 {[%clk 0:02:35.8]} 12. Nxd2 {[%clk 0:02:17.7]} 12... Bf5 {[%clk
0:02:32]} 13. e4 {[%clk 0:02:06.8]} 13... dxe4 {[%clk 0:02:31.3]} 14. Nxe4
{[%clk 0:02:06.8]} 14... Nf6 {[%clk 0:02:29.2]} 15. Rad1 {[%clk 0:02:06]} 15...
Nxe4 {[%clk 0:02:24.3]} 16. Bxe4 {[%clk 0:02:05.4]} 16... Bxe4 {[%clk
0:02:25.2]} 17. Qxe4 {[%clk 0:02:05.2]} 17... Qd7 {[%clk 0:02:22.2]} 18. Rd2
{[%clk 0:01:56.1]} 18... e6 {[%clk 0:02:21.2]} 19. Rfd1 {[%clk 0:01:55.6]} 19...
Rfe8 {[%clk 0:02:08.5]} 20. Qc2 {[%clk 0:01:43.6]} 20... Rad8 {[%clk 0:01:53.2]}
21. h4 {[%clk 0:01:36.4]} 21... h5 {[%clk 0:01:52.6]} 22. Bc3 {[%clk 0:01:36.2]}
22... b6 {[%clk 0:01:47.8]} 23. a4 {[%clk 0:01:34.3]} 23... Qb7 {[%clk
0:01:42.1]} 24. b4 {[%clk 0:01:20.3]} 24... b5 {[%clk 0:01:34.7]} 25. axb5
{[%clk 0:01:10.5]} 25... cxb5 {[%clk 0:01:34.9]} 26. d5 {[%clk 0:00:53.3]} 26...
Bxc3 {[%clk 0:01:33.5]} 27. Qxc3 {[%clk 0:00:53.3]} 27... bxc4 {[%clk
0:01:18.2]} 28. dxe6 {[%clk 0:00:53]} 28... Rxd2 {[%clk 0:01:18.8]} 29. exf7+
{[%clk 0:00:52.5]} 29... Qxf7 {[%clk 0:01:18.7]} 30. Qxd2 {[%clk 0:00:52.3]}
30... Kh7 {[%clk 0:01:01.2]} 31. Qd5 {[%clk 0:00:38.4]} 31... Qxd5 {[%clk
0:00:56]} 32. Rxd5 {[%clk 0:00:38.1]} 32... Re1+ {[%clk 0:00:53.5]} 33. Kg2
{[%clk 0:00:38]} 33... Rb1 {[%clk 0:00:54.2]} 34. Rd7+ {[%clk 0:00:37.1]} 34...
Kh6 {[%clk 0:00:53.8]} 35. Rxa7 {[%clk 0:00:37.1]} 35... Rxb4 {[%clk 0:00:53.7]}
36. Rc7 {[%clk 0:00:37.7]} 36... Ra4 {[%clk 0:00:52.9]} 37. Kf3 {[%clk
0:00:37.4]} 37... Ra3+ {[%clk 0:00:51.9]} 38. Kf4 {[%clk 0:00:37.2]} 38... Rc3
{[%clk 0:00:50.7]} 39. f3 {[%clk 0:00:35.4]} 39... Rc1 {[%clk 0:00:49.9]} 40. g4
{[%clk 0:00:26.4]} 40... hxg4 {[%clk 0:00:50.1]} 41. fxg4 {[%clk 0:00:26.6]}
41... g5+ {[%clk 0:00:30.3]} 42. hxg5+ {[%clk 0:00:26.5]} 42... Kg6 {[%clk
0:00:30.8]} 43. Rc6+ {[%clk 0:00:26.8]} 43... Kg7 {[%clk 0:00:30.8]} 44. g6
{[%clk 0:00:27.1]} 44... c3 {[%clk 0:00:26.4]} 45. Kg5 {[%clk 0:00:26.7]} 45...
c2 {[%clk 0:00:25.9]} 46. Rc7+ {[%clk 0:00:27]} 46... Kg8 {[%clk 0:00:25.7]} 47.
g7 {[%clk 0:00:26.7]} 47... Kh7 {[%clk 0:00:19.9]} 48. g8=Q+ {[%clk 0:00:26.4]}
48... Kxg8 {[%clk 0:00:19.8]} 49. Kg6 {[%clk 0:00:27]} 49... Rf1 {[%clk
0:00:14.9]} 50. Rxc2 {[%clk 0:00:25.6]} 50... Rf8 {[%clk 0:00:15]} 51. Rc7
{[%clk 0:00:25.3]} 51... Ra8 {[%clk 0:00:15]} 52. g5 {[%clk 0:00:25.8]} 52...
Ra6+ {[%clk 0:00:14.5]} 53. Kh5 {[%clk 0:00:26.1]} 53... Rb6 {[%clk 0:00:14.5]}
54. Rd7 {[%clk 0:00:25.5]} 54... Ra6 {[%clk 0:00:14.5]} 55. Rd5 {[%clk
0:00:24.1]} 55... Rb6 {[%clk 0:00:14.4]} 56. g6 {[%clk 0:00:24.2]} 56... Rb1
{[%clk 0:00:13.9]} 57. Kg5 {[%clk 0:00:23.9]} 57... Rg1+ {[%clk 0:00:13.8]} 58.
Kf6 {[%clk 0:00:24.4]} 58... Rf1+ {[%clk 0:00:14]} 59. Rf5 {[%clk 0:00:24.5]}
59... Rxf5+ {[%clk 0:00:13.8]} 60. Kxf5 {[%clk 0:00:25]} 60... Kg7 {[%clk
0:00:14.1]} 61. Kg5 {[%clk 0:00:25.4]} 61... Kg8 {[%clk 0:00:14.2]} 62. Kg4
{[%clk 0:00:25.5]} 62... Kg7 {[%clk 0:00:14.3]} 63. Kf5 {[%clk 0:00:26]} 63...
Kg8 {[%clk 0:00:14.5]} 64. Kf6 {[%clk 0:00:26.2]} 64... Kf8 {[%clk 0:00:14.5]}
65. Kg5 {[%clk 0:00:24.7]} 65... Kg7 {[%clk 0:00:14.5]} 66. Kh5 {[%clk
0:00:24.7]} 66... Kg8 {[%clk 0:00:14.8]} 67. Kh6 {[%clk 0:00:24.8]} 67... Kh8
{[%clk 0:00:14.7]} 68. g7+ {[%clk 0:00:24.7]} 68... Kg8 {[%clk 0:00:14.6]} 69.
Kg6 {[%clk 0:00:25.4]} 1/2-1/2

[Event "*** Titled Tuesday Blitz"]
[Site "Chess.com"]
[Date "2021.03.30"]
[Round "9"]
[White "kuli4ik"]
[Black "Leonid_Starozhilov"]
[Result "1-0"]
[WhiteElo "2870"]
[BlackElo "2726"]
[TimeControl "180+1"]
[EndTime "11:47:53 PDT"]
[Termination "kuli4ik won by resignation"]

1. Nf3 {[%clk 0:03:00.9]} 1... Nf6 {[%clk 0:02:59.9]} 2. g3 {[%clk 0:03:01.3]}
2... g6 {[%clk 0:03:00.4]} 3. b3 {[%clk 0:03:01.4]} 3... Bg7 {[%clk 0:03:01.3]}
4. Bb2 {[%clk 0:03:02]} 4... O-O {[%clk 0:03:01.4]} 5. Bg2 {[%clk 0:03:02.4]}
5... d5 {[%clk 0:02:53.1]} 6. c4 {[%clk 0:03:01.7]} 6... c6 {[%clk 0:02:52.1]}
7. O-O {[%clk 0:03:00.9]} 7... Bf5 {[%clk 0:02:46.9]} 8. d3 {[%clk 0:03:00.5]}
8... Nbd7 {[%clk 0:02:40]} 9. Qc2 {[%clk 0:03:00.1]} 9... Bg4 {[%clk 0:02:39.3]}
10. Nbd2 {[%clk 0:02:59.4]} 10... Bxf3 {[%clk 0:02:34.8]} 11. Nxf3 {[%clk
0:03:00.3]} 11... e6 {[%clk 0:02:32.4]} 12. a3 {[%clk 0:03:00.3]} 12... Qc7
{[%clk 0:02:31.3]} 13. Rfc1 {[%clk 0:02:59.2]} 13... Rfc8 {[%clk 0:02:17.7]} 14.
b4 {[%clk 0:02:59.1]} 14... a6 {[%clk 0:02:16.1]} 15. Qb3 {[%clk 0:02:54.7]}
15... Ne8 {[%clk 0:02:10.4]} 16. Bxg7 {[%clk 0:02:46]} 16... Nxg7 {[%clk
0:02:11.3]} 17. Rc2 {[%clk 0:02:45.7]} 17... dxc4 {[%clk 0:01:50.7]} 18. Rxc4
{[%clk 0:02:42.6]} 18... Ne5 {[%clk 0:01:47.9]} 19. Nxe5 {[%clk 0:02:42]} 19...
Qxe5 {[%clk 0:01:48.8]} 20. Re1 {[%clk 0:02:39]} 20... Nf5 {[%clk 0:01:46.8]}
21. e3 {[%clk 0:02:38]} 21... Qd6 {[%clk 0:01:09.3]} 22. d4 {[%clk 0:02:36.7]}
22... e5 {[%clk 0:01:02.8]} 23. Bh3 {[%clk 0:02:32.4]} 23... Re8 {[%clk
0:00:42.8]} 24. Bxf5 {[%clk 0:02:30.3]} 24... gxf5 {[%clk 0:00:43.7]} 25. dxe5
{[%clk 0:02:30.2]} 25... Rxe5 {[%clk 0:00:44.2]} 26. Rd1 {[%clk 0:02:27.2]}
26... Qe6 {[%clk 0:00:35.1]} 27. Qc2 {[%clk 0:02:23.4]} 27... Re4 {[%clk
0:00:26.1]} 28. Rdd4 {[%clk 0:02:19.8]} 28... Re8 {[%clk 0:00:23.2]} 29. Rxe4
{[%clk 0:02:14.1]} 29... fxe4 {[%clk 0:00:24.1]} 30. Rd4 {[%clk 0:02:14.2]}
30... Re7 {[%clk 0:00:19.6]} 31. Qc5 {[%clk 0:02:10.8]} 31... Qf6 {[%clk
0:00:16.1]} 32. Qh5 {[%clk 0:02:06.9]} 32... Kg7 {[%clk 0:00:14.6]} 33. Kg2
{[%clk 0:02:02.9]} 33... Qg6 {[%clk 0:00:10]} 34. Qd1 {[%clk 0:02:02.2]} 34...
Qf5 {[%clk 0:00:08.2]} 35. h3 {[%clk 0:01:59.9]} 35... h5 {[%clk 0:00:05.7]} 36.
Rd6 {[%clk 0:01:58.2]} 36... Re8 {[%clk 0:00:03.1]} 37. Rd7 {[%clk 0:01:56.6]}
37... Re6 {[%clk 0:00:03.1]} 38. Rxb7 {[%clk 0:01:51.6]} 38... Rf6 {[%clk
0:00:02.6]} 39. Qe2 {[%clk 0:01:51.3]} 39... a5 {[%clk 0:00:03]} 40. b5 {[%clk
0:01:44]} 40... cxb5 {[%clk 0:00:02.2]} 41. Rxb5 {[%clk 0:01:43.6]} 41... Qf3+
{[%clk 0:00:01.5]} 42. Qxf3 {[%clk 0:01:44]} 42... exf3+ {[%clk 0:00:02.4]} 43.
Kh2 {[%clk 0:01:38.4]} 43... Rc6 {[%clk 0:00:02.6]} 44. Rxh5 {[%clk 0:01:19.5]}
44... Rc2 {[%clk 0:00:02.4]} 45. g4 {[%clk 0:01:19.9]} 45... Rxf2+ {[%clk
0:00:02.9]} 46. Kg3 {[%clk 0:01:20.3]} 46... Rf1 {[%clk 0:00:02.7]} 47. Rxa5
{[%clk 0:01:19.4]} 47... Kg6 {[%clk 0:00:02.6]} 48. Rf5 {[%clk 0:01:18.8]} 48...
Ra1 {[%clk 0:00:01.9]} 49. Rxf3 {[%clk 0:01:17.6]} 49... Rxa3 {[%clk 0:00:02.8]}
50. Kf4 {[%clk 0:01:11.4]} 50... Ra4+ {[%clk 0:00:03.2]} 51. e4 {[%clk
0:01:10.6]} 51... f6 {[%clk 0:00:03.5]} 52. Re3 {[%clk 0:01:08.8]} 52... Rb4
{[%clk 0:00:03.6]} 53. Rd3 {[%clk 0:01:08.2]} 53... Ra4 {[%clk 0:00:03.7]} 54.
h4 {[%clk 0:01:08.1]} 54... Ra1 {[%clk 0:00:03.6]} 55. Rd6 {[%clk 0:01:01.9]}
55... Rf1+ {[%clk 0:00:03.2]} 56. Kg3 {[%clk 0:01:02.1]} 56... Rg1+ {[%clk
0:00:03.7]} 57. Kf3 {[%clk 0:01:02.4]} 57... Rf1+ {[%clk 0:00:03.7]} 58. Kg2
{[%clk 0:01:02]} 58... Rf4 {[%clk 0:00:03.6]} 59. Kg3 {[%clk 0:01:00.1]} 59...
Rxe4 {[%clk 0:00:03.6]} 60. g5 {[%clk 0:01:00.5]} 60... Re3+ {[%clk 0:00:03.2]}
61. Kf4 {[%clk 0:00:59.8]} 61... Rh3 {[%clk 0:00:03]} 62. Kg4 {[%clk 0:00:56.1]}
62... Rh1 {[%clk 0:00:02.3]} 63. Rxf6+ {[%clk 0:00:55.7]} 63... Kg7 {[%clk
0:00:02.8]} 64. Rb6 {[%clk 0:00:55.2]} 64... Rg1+ {[%clk 0:00:03.1]} 65. Kh5
{[%clk 0:00:55.2]} 65... Re1 {[%clk 0:00:03.1]} 66. Rb7+ {[%clk 0:00:54.8]}
66... Kg8 {[%clk 0:00:02.4]} 67. Kh6 {[%clk 0:00:55.3]} 67... Re6+ {[%clk
0:00:02.1]} 68. g6 {[%clk 0:00:55.3]} 68... Re8 {[%clk 0:00:02.8]} 69. h5 {[%clk
0:00:55.1]} 69... Rd8 {[%clk 0:00:02.7]} 70. Rb5 {[%clk 0:00:51.9]} 70... Kh8
{[%clk 0:00:02.7]} 71. Kg5 {[%clk 0:00:51.1]} 71... Rc8 {[%clk 0:00:02.3]} 72.
h6 {[%clk 0:00:50.4]} 72... Rd8 {[%clk 0:00:02.8]} 73. Re5 {[%clk 0:00:49.1]}
73... Rf8 {[%clk 0:00:02.8]} 74. g7+ {[%clk 0:00:48.3]} 1-0

[Event "*** Titled Tuesday Blitz"]
[Site "Chess.com"]
[Date "2021.03.30"]
[Round "9"]
[White "davidkalashian"]
[Black "CSB7"]
[Result "0-1"]
[WhiteElo "2541"]
[BlackElo "2680"]
[TimeControl "180+1"]
[EndTime "11:47:59 PDT"]
[Termination "CSB7 won on time"]

1. d4 {[%clk 0:02:20.2]} 1... e6 {[%clk 0:03:00.9]} 2. c4 {[%clk 0:02:19.1]}
2... Nf6 {[%clk 0:02:57.4]} 3. Nf3 {[%clk 0:02:09.2]} 3... d5 {[%clk 0:02:53.6]}
4. Nc3 {[%clk 0:01:31.2]} 4... Bb4 {[%clk 0:02:50.2]} 5. e3 {[%clk 0:01:05.7]}
5... O-O {[%clk 0:02:47.6]} 6. Bd3 {[%clk 0:01:05.1]} 6... c5 {[%clk 0:02:45]}
7. O-O {[%clk 0:01:02.5]} 7... cxd4 {[%clk 0:02:43.6]} 8. exd4 {[%clk
0:01:01.8]} 8... dxc4 {[%clk 0:02:43.9]} 9. Bxc4 {[%clk 0:01:02.7]} 9... b6
{[%clk 0:02:44.4]} 10. Qe2 {[%clk 0:01:01.3]} 10... Bb7 {[%clk 0:02:42.7]} 11.
Rd1 {[%clk 0:01:00.9]} 11... Bxc3 {[%clk 0:02:33.8]} 12. bxc3 {[%clk 0:00:59.6]}
12... Qc8 {[%clk 0:02:34.3]} 13. Bg5 {[%clk 0:00:58.1]} 13... Nbd7 {[%clk
0:02:33.4]} 14. Ne5 {[%clk 0:00:54.9]} 14... Nxe5 {[%clk 0:02:04.3]} 15. dxe5
{[%clk 0:00:52.9]} 15... Ne4 {[%clk 0:02:03.7]} 16. Bd2 {[%clk 0:00:40.9]} 16...
Qc6 {[%clk 0:01:42.9]} 17. Bb5 {[%clk 0:00:39.8]} 17... Nxc3 {[%clk 0:01:35.1]}
18. Bxc6 {[%clk 0:00:38.3]} 18... Nxe2+ {[%clk 0:01:34.2]} 19. Kf1 {[%clk
0:00:38.9]} 19... Bxc6 {[%clk 0:01:23]} 20. Kxe2 {[%clk 0:00:39.8]} 20... Bxg2
{[%clk 0:01:21.2]} 21. Rg1 {[%clk 0:00:40.2]} 21... Be4 {[%clk 0:01:19.4]} 22.
h4 {[%clk 0:00:37.3]} 22... h5 {[%clk 0:01:15.9]} 23. Bg5 {[%clk 0:00:29]} 23...
Rfc8 {[%clk 0:01:11.8]} 24. Rac1 {[%clk 0:00:27.8]} 24... Kh7 {[%clk 0:01:08.5]}
25. Ke3 {[%clk 0:00:26]} 25... Bd5 {[%clk 0:01:00.9]} 26. a3 {[%clk 0:00:24.2]}
26... b5 {[%clk 0:00:59.1]} 27. Kd4 {[%clk 0:00:22.2]} 27... a5 {[%clk
0:00:53.1]} 28. f4 {[%clk 0:00:19.2]} 28... b4 {[%clk 0:00:46.6]} 29. axb4
{[%clk 0:00:18.6]} 29... axb4 {[%clk 0:00:47.5]} 30. f5 {[%clk 0:00:19.1]} 30...
b3 {[%clk 0:00:41.6]} 31. f6 {[%clk 0:00:18.7]} 31... Ra4+ {[%clk 0:00:32.1]}
32. Ke3 {[%clk 0:00:15]} 32... Rxc1 {[%clk 0:00:27.1]} 33. Rxc1 {[%clk
0:00:15.9]} 33... Re4+ {[%clk 0:00:26.8]} 34. Kd3 {[%clk 0:00:15.7]} 34... Rxe5
{[%clk 0:00:25.7]} 35. fxg7 {[%clk 0:00:16.6]} 35... Kxg7 {[%clk 0:00:25.3]} 36.
Rf1 {[%clk 0:00:14.4]} 36... Re4 {[%clk 0:00:17.6]} 37. Kc3 {[%clk 0:00:11.4]}
37... f5 {[%clk 0:00:12.9]} 38. Rg1 {[%clk 0:00:09.5]} 38... Rg4 {[%clk
0:00:12.4]} 39. Re1 {[%clk 0:00:09.1]} 39... Kg6 {[%clk 0:00:12.2]} 40. Ra1
{[%clk 0:00:08.3]} 40... Rxg5 {[%clk 0:00:12.3]} 41. hxg5 {[%clk 0:00:07.6]}
41... Kxg5 {[%clk 0:00:13.2]} 42. Rg1+ {[%clk 0:00:07.5]} 42... Kf4 {[%clk
0:00:10.9]} 43. Rg8 {[%clk 0:00:05.9]} 43... h4 {[%clk 0:00:10.9]} 44. Rh8
{[%clk 0:00:05.8]} 44... Kg3 {[%clk 0:00:10.6]} 45. Rg8+ {[%clk 0:00:06.7]}
45... Kh2 {[%clk 0:00:10.7]} 46. Rh8 {[%clk 0:00:07.6]} 46... h3 {[%clk
0:00:11]} 47. Rh5 {[%clk 0:00:06.2]} 47... Bg2 {[%clk 0:00:07.9]} 48. Kxb3
{[%clk 0:00:03.4]} 48... Kg1 {[%clk 0:00:08.2]} 49. Kc3 {[%clk 0:00:01.2]} 49...
h2 {[%clk 0:00:08.4]} 50. Kd4 {[%clk 0:00:01.5]} 50... h1=Q {[%clk 0:00:08.6]}
51. Rg5 {[%clk 0:00:02]} 51... Qh8+ {[%clk 0:00:07.3]} 52. Ke3 {[%clk
0:00:01.7]} 52... Qh6 {[%clk 0:00:07]} 53. Kf4 {[%clk 0:00:02.6]} 53... Kf2
{[%clk 0:00:07.1]} 54. Ke5 {[%clk 0:00:02.4]} 54... Qxg5 {[%clk 0:00:07.6]} 0-1

[Event "*** Titled Tuesday Blitz"]
[Site "Chess.com"]
[Date "2021.03.30"]
[Round "9"]
[White "Mr_Sinigami"]
[Black "ChristopherYoo"]
[Result "0-1"]
[WhiteElo "2566"]
[BlackElo "2910"]
[TimeControl "180+1"]
[EndTime "11:48:06 PDT"]
[Termination "ChristopherYoo won on time"]

1. d4 {[%clk 0:03:00.9]} 1... Nf6 {[%clk 0:02:55.1]} 2. Nf3 {[%clk 0:02:55.9]}
2... e6 {[%clk 0:02:53.9]} 3. Bf4 {[%clk 0:02:51.6]} 3... b6 {[%clk 0:02:45.5]}
4. e3 {[%clk 0:02:48.6]} 4... Bb7 {[%clk 0:02:45.8]} 5. Be2 {[%clk 0:02:43.4]}
5... Be7 {[%clk 0:02:46]} 6. O-O {[%clk 0:02:38.6]} 6... O-O {[%clk 0:02:45.6]}
7. h3 {[%clk 0:02:35.4]} 7... d5 {[%clk 0:02:43.2]} 8. Nbd2 {[%clk 0:02:28.5]}
8... Nbd7 {[%clk 0:02:42.4]} 9. a4 {[%clk 0:02:24.7]} 9... a6 {[%clk 0:02:41.6]}
10. c3 {[%clk 0:02:18.6]} 10... c5 {[%clk 0:02:41]} 11. Bd3 {[%clk 0:02:10.2]}
11... c4 {[%clk 0:02:40.1]} 12. Be2 {[%clk 0:01:55.5]} 12... b5 {[%clk
0:02:38.9]} 13. b3 {[%clk 0:01:51.3]} 13... Nb6 {[%clk 0:01:58.1]} 14. Qb1
{[%clk 0:01:41.7]} 14... Bc6 {[%clk 0:01:54.6]} 15. Ne5 {[%clk 0:01:34.5]} 15...
Be8 {[%clk 0:01:53.9]} 16. axb5 {[%clk 0:01:19.9]} 16... axb5 {[%clk 0:01:52.8]}
17. Qb2 {[%clk 0:01:15.4]} 17... cxb3 {[%clk 0:01:37.6]} 18. Rxa8 {[%clk
0:01:04.8]} 18... Qxa8 {[%clk 0:01:38.5]} 19. Ra1 {[%clk 0:01:00.9]} 19... Qc8
{[%clk 0:01:32.9]} 20. Qxb3 {[%clk 0:00:57.4]} 20... Nc4 {[%clk 0:01:31.2]} 21.
Nef3 {[%clk 0:00:43.7]} 21... Bc6 {[%clk 0:01:09.1]} 22. Ra7 {[%clk 0:00:39.8]}
22... Qd8 {[%clk 0:01:00.3]} 23. Bc7 {[%clk 0:00:33.8]} 23... Qe8 {[%clk
0:00:56.2]} 24. Bg3 {[%clk 0:00:28.3]} 24... Bd8 {[%clk 0:00:41.4]} 25. Qb1
{[%clk 0:00:23.3]} 25... Bb6 {[%clk 0:00:40.1]} 26. Ra2 {[%clk 0:00:19.7]} 26...
Qd8 {[%clk 0:00:29.6]} 27. Ne5 {[%clk 0:00:15.8]} 27... Be8 {[%clk 0:00:27.7]}
28. Ndxc4 {[%clk 0:00:11.9]} 28... dxc4 {[%clk 0:00:27.9]} 29. Bf3 {[%clk
0:00:06.6]} 29... Nd5 {[%clk 0:00:28.1]} 30. Bxd5 {[%clk 0:00:06.2]} 30... exd5
{[%clk 0:00:28.6]} 31. Qb4 {[%clk 0:00:05]} 31... f6 {[%clk 0:00:26.5]} 32. Nf3
{[%clk 0:00:04.8]} 32... Rf7 {[%clk 0:00:23.6]} 33. Ra6 {[%clk 0:00:04.7]} 33...
Ra7 {[%clk 0:00:23.5]} 34. Rxa7 {[%clk 0:00:04.4]} 34... Bxa7 {[%clk 0:00:24.4]}
35. Nd2 {[%clk 0:00:04.8]} 35... Bb6 {[%clk 0:00:24.1]} 36. e4 {[%clk
0:00:05.1]} 36... Ba5 {[%clk 0:00:23.6]} 37. Qb2 {[%clk 0:00:04.5]} 37... dxe4
{[%clk 0:00:23]} 38. Nxe4 {[%clk 0:00:04.7]} 38... Bc6 {[%clk 0:00:23.7]} 39.
Nd6 {[%clk 0:00:04.7]} 39... Qd7 {[%clk 0:00:22]} 40. Qa3 {[%clk 0:00:04.4]}
40... Bc7 {[%clk 0:00:20]} 41. Qc5 {[%clk 0:00:04.6]} 41... Bxd6 {[%clk
0:00:16.3]} 42. Bxd6 {[%clk 0:00:05.5]} 42... Qb7 {[%clk 0:00:15.3]} 43. f3
{[%clk 0:00:04.5]} 43... Kf7 {[%clk 0:00:15.2]} 44. Bf4 {[%clk 0:00:04.5]} 44...
g6 {[%clk 0:00:14.4]} 45. Kf2 {[%clk 0:00:04.8]} 45... Qd7 {[%clk 0:00:13.9]}
46. Be3 {[%clk 0:00:04.7]} 46... g5 {[%clk 0:00:13.9]} 47. Qb6 {[%clk
0:00:04.2]} 47... h6 {[%clk 0:00:13.6]} 48. Qc5 {[%clk 0:00:04.3]} 48... Bd5
{[%clk 0:00:13.8]} 49. Qb6 {[%clk 0:00:04.5]} 49... Kg7 {[%clk 0:00:11.8]} 50.
Qc5 {[%clk 0:00:04.7]} 50... Bc6 {[%clk 0:00:10.3]} 51. Qb6 {[%clk 0:00:04.9]}
51... Qd5 {[%clk 0:00:09]} 52. Qc7+ {[%clk 0:00:04.9]} 52... Kg6 {[%clk
0:00:09]} 53. Qc8 {[%clk 0:00:05.4]} 53... Bd7 {[%clk 0:00:06.9]} 54. Qd8 {[%clk
0:00:04.9]} 54... Kg7 {[%clk 0:00:06.3]} 55. Qe7+ {[%clk 0:00:04.9]} 55... Kg6
{[%clk 0:00:06.3]} 56. Qd8 {[%clk 0:00:05.3]} 56... Qf7 {[%clk 0:00:06.8]} 57.
Qb6 {[%clk 0:00:04.9]} 57... Kg7 {[%clk 0:00:05.6]} 58. Qd6 {[%clk 0:00:05]}
58... Qe8 {[%clk 0:00:05.9]} 59. Qc7 {[%clk 0:00:04.6]} 59... Kg6 {[%clk
0:00:05.6]} 60. Qd6 {[%clk 0:00:04.9]} 60... Bf5 {[%clk 0:00:05.8]} 0-1

[Event "*** Titled Tuesday Blitz"]
[Site "Chess.com"]
[Date "2021.03.30"]
[Round "9"]
[White "esapunov"]
[Black "vugarrasulov"]
[Result "0-1"]
[WhiteElo "2737"]
[BlackElo "2875"]
[TimeControl "180+1"]
[EndTime "11:48:08 PDT"]
[Termination "vugarrasulov won by resignation"]

1. c4 {[%clk 0:03:00.9]} 1... g6 {[%clk 0:02:59.3]} 2. g3 {[%clk 0:02:59]} 2...
Bg7 {[%clk 0:02:59.7]} 3. Bg2 {[%clk 0:02:59.5]} 3... d6 {[%clk 0:02:59.9]} 4.
d4 {[%clk 0:02:59.4]} 4... Nf6 {[%clk 0:03:00.3]} 5. Nf3 {[%clk 0:02:57]} 5...
O-O {[%clk 0:03:00.8]} 6. O-O {[%clk 0:02:57.2]} 6... Nc6 {[%clk 0:03:01.5]} 7.
Nc3 {[%clk 0:02:55.7]} 7... a6 {[%clk 0:03:01.8]} 8. h3 {[%clk 0:02:51.6]} 8...
Rb8 {[%clk 0:03:01.6]} 9. b3 {[%clk 0:02:49.6]} 9... b5 {[%clk 0:02:57.9]} 10.
cxb5 {[%clk 0:02:49]} 10... axb5 {[%clk 0:02:58.8]} 11. e3 {[%clk 0:02:36.9]}
11... b4 {[%clk 0:02:57.6]} 12. Ne2 {[%clk 0:02:36.9]} 12... e5 {[%clk 0:02:51]}
13. dxe5 {[%clk 0:02:34.4]} 13... dxe5 {[%clk 0:02:47.5]} 14. Qc2 {[%clk
0:02:31.6]} 14... Rb6 {[%clk 0:02:34.1]} 15. Rd1 {[%clk 0:02:23.5]} 15... Qe7
{[%clk 0:02:32.4]} 16. Bb2 {[%clk 0:02:18.5]} 16... Bf5 {[%clk 0:02:31.2]} 17.
Qc4 {[%clk 0:02:13.2]} 17... Na5 {[%clk 0:02:05.9]} 18. Qh4 {[%clk 0:01:52.4]}
18... Rb5 {[%clk 0:02:03.3]} 19. Rac1 {[%clk 0:01:39]} 19... h6 {[%clk
0:02:03.5]} 20. g4 {[%clk 0:01:38.6]} 20... g5 {[%clk 0:01:55.4]} 21. Qg3 {[%clk
0:01:28.3]} 21... Ne4 {[%clk 0:01:55.1]} 22. Qh2 {[%clk 0:01:27.8]} 22... Bg6
{[%clk 0:01:55.7]} 23. Ng3 {[%clk 0:01:22.8]} 23... Nc3 {[%clk 0:01:44.1]} 24.
Bxc3 {[%clk 0:01:22.4]} 24... bxc3 {[%clk 0:01:45]} 25. Rxc3 {[%clk 0:01:20.9]}
25... Rd8 {[%clk 0:01:39.1]} 26. Rdc1 {[%clk 0:01:17.2]} 26... c6 {[%clk
0:01:26.7]} 27. e4 {[%clk 0:01:14.7]} 27... Qb4 {[%clk 0:01:20.7]} 28. Bf1
{[%clk 0:01:05.7]} 28... Rb7 {[%clk 0:01:15.9]} 29. h4 {[%clk 0:01:03.5]} 29...
Rbd7 {[%clk 0:01:00.1]} 30. hxg5 {[%clk 0:00:58.2]} 30... hxg5 {[%clk 0:01:01]}
31. Nxg5 {[%clk 0:00:53.9]} 31... Rd1 {[%clk 0:00:56.1]} 32. Nf5 {[%clk
0:00:49]} 32... Bf6 {[%clk 0:00:46.6]} 33. Qh6 {[%clk 0:00:41.6]} 33... Rxc1
{[%clk 0:00:33.4]} 34. Rxc1 {[%clk 0:00:41.1]} 34... Qd2 {[%clk 0:00:33.4]} 35.
Nxf7 {[%clk 0:00:36]} 35... Kxf7 {[%clk 0:00:28.1]} 36. Rc5 {[%clk 0:00:30.4]}
36... Bxf5 {[%clk 0:00:24]} 37. Qxd2 {[%clk 0:00:29.8]} 37... Rxd2 {[%clk
0:00:24.9]} 38. exf5 {[%clk 0:00:28.7]} 38... Bd8 {[%clk 0:00:19.2]} 39. g5
{[%clk 0:00:28.9]} 39... Bb6 {[%clk 0:00:17.9]} 40. Rc3 {[%clk 0:00:23.9]} 40...
Rxf2 {[%clk 0:00:17.7]} 41. Rh3 {[%clk 0:00:17.6]} 41... Rxf5+ {[%clk
0:00:17.4]} 42. Kg2 {[%clk 0:00:17.9]} 42... Rf2+ {[%clk 0:00:17.5]} 43. Kg1
{[%clk 0:00:18.4]} 43... Rf5+ {[%clk 0:00:17]} 44. Kg2 {[%clk 0:00:18.6]} 44...
Rxg5+ {[%clk 0:00:17.5]} 45. Kf3 {[%clk 0:00:19]} 45... Rf5+ {[%clk 0:00:17.8]}
46. Ke2 {[%clk 0:00:19.6]} 46... Rf2+ {[%clk 0:00:18.1]} 47. Ke1 {[%clk
0:00:20.1]} 47... Rb2 {[%clk 0:00:13.3]} 48. Rh6 {[%clk 0:00:19.6]} 48... Bd4
{[%clk 0:00:12.3]} 49. Bd3 {[%clk 0:00:18.2]} 49... Ke7 {[%clk 0:00:07.8]} 50.
Kd1 {[%clk 0:00:17]} 50... Rxa2 {[%clk 0:00:07.1]} 51. b4 {[%clk 0:00:16.9]}
51... Nb3 {[%clk 0:00:07.7]} 52. Bc4 {[%clk 0:00:15.3]} 52... Rd2+ {[%clk
0:00:07.5]} 53. Ke1 {[%clk 0:00:15.2]} 53... Bc3 {[%clk 0:00:07.1]} 54. Kf1
{[%clk 0:00:12.4]} 54... Nd4 {[%clk 0:00:06.7]} 55. Rh3 {[%clk 0:00:08.5]} 55...
Kf6 {[%clk 0:00:06.3]} 56. Rxc3 {[%clk 0:00:08.3]} 56... e4 {[%clk 0:00:06.2]}
57. Ba6 {[%clk 0:00:05.5]} 57... Ke5 {[%clk 0:00:05.1]} 58. Bb7 {[%clk
0:00:05.6]} 58... Kf4 {[%clk 0:00:04.1]} 59. Bxc6 {[%clk 0:00:05.3]} 59... e3
{[%clk 0:00:04.5]} 60. Ba4 {[%clk 0:00:02.1]} 60... Rf2+ {[%clk 0:00:04.5]} 61.
Ke1 {[%clk 0:00:02.2]} 61... Nf3+ {[%clk 0:00:05.4]} 62. Kd1 {[%clk 0:00:02.6]}
62... e2+ {[%clk 0:00:06.3]} 0-1